bitfinex/quotes_SOLUSD_20250907
["timestamp","ask_amount","ask_price","bid_price","bid_amount"]
[1757261216633,38.28,205.18,205.15,2.87414554]
[1757261217542,0.68,205.17,205.14,2.87414554]
[1757261218215,0.68,205.17,205.13,0.69]
[1757261218417,0.68,205.17,205.14,2.87414554]
[1757261219217,0.68,205.16,205.13,2.87414554]
[1757261219439,0.68,205.15,205.12,2.87414554]
[1757261220328,4.8740212,205.17,205.13,2.87414554]
[1757261220625,0.68,205.16,205.13,2.87414554]
[1757261220939,4.8740212,205.17,205.12,2.87414554]
[1757261220940,0.68,205.15,205.12,2.87414554]
[1757261221820,4.8740212,205.17,205.12,2.87414554]
[1757261222042,0.68,205.14,205.12,2.87414554]
[1757261222748,0.68,205.16,205.12,2.87414554]
[1757261223125,0.68,205.16,205.12,3.56414554]
[1757261223321,4.8740212,205.17,205.11,4.87539358]
[1757261223626,5.5540212,205.17,205.11,5.56539358]
[1757261223827,5.5540212,205.17,205.12,2.87414554]
[1757261224034,0.68,205.16,205.12,2.87414554]
[1757261224230,2.93414554,205.2,205.15,2.87414554]
[1757261224544,38.24,205.19,205.15,2.87414554]
[1757261224748,38.24,205.19,205.14,2.87414554]
[1757261224749,0.68,205.18,205.14,2.87414554]
[1757261225044,0.66,205.17,205.14,2.87414554]
[1757261226145,0.66,205.16,205.13,2.87414554]
[1757261226452,0.66,205.18,205.14,2.87414554]
[1757261226646,0.66,205.17,205.14,2.87414554]
[1757261228137,0.66,205.17,205.15,2.87414554]
[1757261228752,0.66,205.17,205.13,0.68]
[1757261228935,0.72,205.2,205.16,2.87414554]
[1757261229140,37.62,205.2,205.17,0.68]
[1757261229335,38.28,205.2,205.17,2.87414554]
[1757261230230,37.62,205.2,205.1,26.03]
[1757261230554,0.66,205.19,205.15,2.87414554]
[1757261230757,0.66,205.18,205.15,2.87414554]
[1757261231052,0.72,205.2,205.17,2.87414554]
[1757261231356,0.72,205.2,205.18,2.87414554]
[1757261232052,0.66,205.19,205.16,2.87414554]
[1757261232552,0.66,205.19,205.15,3.55414554]
[1757261232754,5.53355048,205.19,205.15,3.55414554]
[1757261232936,0.66,205.18,205.15,2.87414554]
[1757261233654,4.9333394,205.2,205.15,2.87414554]
[1757261233853,0.66,205.19,205.15,3.55414554]
[1757261234147,0.66,205.19,205.16,2.87414554]
[1757261234553,5.53354239,205.19,205.16,2.87414554]
[1757261235936,0.66,205.18,205.16,2.87414554]
[1757261236248,0.66,205.17,205.12,4.90489271]
[1757261236453,0.66,205.16,205.13,2.87414554]
[1757261236950,0.66,205.15,205.12,2.90414554]
[1757261238262,5.53465832,205.15,205.12,2.90414554]
[1757261238555,5.53465832,205.15,205.12,0.03]
[1757261238556,0.66,205.14,205.12,0.03]
[1757261239159,37.58,205.13,205.12,0.03]
[1757261239451,38.24,205.13,205.12,0.03]
[1757261239654,37.58,205.13,205.12,0.03]
[1757261242553,37.58,205.13,205.12,2.90414554]
[1757261243253,37.58,205.13,205.12,0.03]
[1757261243453,5.5343103,205.16,205.12,0.03]
[1757261243644,37.58,205.15,205.12,2.90414554]
[1757261243950,38.24,205.15,205.12,2.90414554]
[1757261244665,42.45449453,205.15,205.12,0.03]
[1757261244860,2.87414554,205.13,205.12,0.03]
[1757261245358,37.58,205.13,205.12,2.90414554]
[1757261246965,2.90414554,205.16,205.12,3.58414554]
[1757261247163,0.72,205.2,205.15,2.87414554]
[1757261247346,37.62,205.18,205.16,2.87414554]
[1757261247668,0.66,205.17,205.12,2.90414554]
[1757261247966,0.66,205.16,205.12,2.90414554]
[1757261248145,37.64,205.15,205.12,2.90414554]
[1757261248347,38.3,205.15,205.12,0.03]
[1757261248641,0.66,205.14,205.12,2.90414554]
[1757261249665,0.66,205.13,205.12,0.03]
[1757261249866,42.51448463,205.15,205.12,0.03]
[1757261249867,0.66,205.14,205.12,0.03]
[1757261250065,42.51448463,205.15,205.12,0.03]
[1757261250253,0.66,205.13,205.12,0.03]
[1757261250464,43.17448463,205.15,205.12,0.03]
[1757261250949,42.51448463,205.15,205.12,0.03]
[1757261251153,0.66,205.14,205.12,0.03]
[1757261253448,37.64,205.15,205.12,3.58414554]
[1757261253944,38.3,205.15,205.12,2.90414554]
[1757261254465,0.66,205.15,205.12,0.03]
[1757261254662,4.87429686,205.16,205.12,0.03]
[1757261254663,38.28,205.14,205.12,0.03]
[1757261255063,38.34,205.14,205.12,0.03]
[1757261255653,0.72,205.13,205.12,0.03]
[1757261256249,37.6,205.13,205.12,3.59414554]
[1757261256451,0.06,205.2,205.12,3.59414554]
[1757261256771,37.62,205.19,205.17,2.87414554]
[1757261257074,37.62,205.19,205.18,2.87414554]
[1757261258352,38.34,205.19,205.18,2.87414554]
[1757261258553,38.34,205.19,205.17,2.87414554]
[1757261258861,38.34,205.19,205.14,5.56452921]
[1757261259051,38.34,205.19,205.17,2.87414554]
[1757261261859,38.34,205.19,205.15,5.56447659]
[1757261262062,38.34,205.19,205.17,2.87414554]
[1757261263891,0.72,205.19,205.17,2.87414554]
[1757261264193,37.58,205.18,205.17,2.87414554]
[1757261265588,38.3,205.18,205.17,2.87414554]
[1757261266585,38.3,205.18,205.17,4.48946539]
[1757261266767,37.58,205.18,205.17,4.48946539]
[1757261268984,38.3,205.18,205.17,4.48946539]
[1757261269367,38.3,205.18,205.15,4.48946539]
[1757261269567,0.72,205.17,205.15,4.48946539]
[1757261269781,0.72,205.16,205.13,4.48946539]
[1757261269964,37.58,205.15,205.13,4.48946539]
[1757261270368,4.93441774,205.2,205.14,5.17946539]
[1757261270566,0.06,205.2,205.19,8.97893078]
[1757261270780,0.06,205.2,205.19,14.54246262]
[1757261270983,0.06,205.2,205.19,10.05299723]
[1757261272590,0.06,205.2,205.19,14.54246262]
[1757261272775,0.06,205.2,205.19,10.05299723]
[1757261272975,0.06,205.2,205.19,5.56353184]
[1757261273176,0.06,205.2,205.19,10.05299723]
[1757261278996,0.06,205.2,205.19,4.48946539]
[1757261279696,0.78,205.2,205.19,4.48946539]
[1757261279892,0.78,205.2,205.16,4.87419315]
[1757261280206,0.72,205.19,205.18,4.48946539]
[1757261282292,0.06,205.2,205.18,4.48946539]
[1757261282594,38.36,205.2,205.18,4.48946539]
[1757261282802,0.72,205.19,205.18,4.48946539]
[1757261284383,37.58,205.19,205.18,4.48946539]
[1757261284894,37.58,205.19,205.17,4.51946539]
[1757261284895,38.3,205.19,205.17,4.51946539]
[1757261285482,0.7,205.18,205.17,4.51946539]
[1757261286187,37.58,205.19,205.17,4.51946539]
[1757261286700,38.28,205.19,205.17,4.51946539]
[1757261288003,37.56,205.19,205.18,4.48946539]
[1757261288185,38.26,205.19,205.18,4.48946539]
[1757261289603,37.56,205.19,205.18,4.48946539]
[1757261289783,38.26,205.19,205.18,4.48946539]
[1757261291298,38.26,205.19,205.17,4.51946539]
[1757261291698,0.7,205.18,205.17,4.51946539]
[1757261291904,0.7,205.18,205.17,0.03]
[1757261292283,5.18946539,205.18,205.17,0.03]
[1757261292682,18.7850594,205.18,205.17,0.03]
[1757261293107,25.60990552,205.18,205.17,0.03]
[1757261294602,16.24667076,205.18,205.17,0.03]
[1757261294909,53.80667076,205.18,205.17,0.03]
[1757261295111,51.85559401,205.18,205.17,0.03]
[1757261295806,0.06,205.2,205.17,4.51946539]
[1757261295994,0.06,205.2,205.19,4.48946539]
[1757261295995,37.62,205.2,205.19,4.48946539]
[1757261298792,37.62,205.2,205.18,4.48946539]
[1757261299316,38.32,205.2,205.18,4.48946539]
[1757261299498,38.32,205.2,205.17,4.51946539]
[1757261300019,38.28,205.19,205.18,4.48946539]
[1757261300215,38.28,205.19,205.17,0.03]
[1757261300401,0.7,205.18,205.17,0.03]
[1757261300713,38.26,205.18,205.17,0.03]
[1757261302411,43.13376937,205.18,205.17,0.03]
[1757261307322,37.56,205.18,205.17,5.20946539]
[1757261307492,37.56,205.18,205.17,4.51946539]
[1757261308424,38.26,205.18,205.17,0.03]
[1757261308801,43.13376937,205.18,205.17,0.03]
[1757261310014,61.21882877,205.18,205.17,0.03]
[1757261310510,65.73829416,205.18,205.17,0.03]
[1757261311213,28.17829416,205.18,205.17,0.03]
[1757261311398,65.75829416,205.18,205.17,0.03]
[1757261311697,61.23882877,205.18,205.17,0.03]
[1757261311899,56.74936338,205.18,205.17,0.03]
[1757261312730,61.23882877,205.18,205.17,0.03]
[1757261312918,63.1900007,205.18,205.17,0.03]
[1757261316498,66.8305392,205.18,205.17,0.03]
[1757261317598,26.0,205.15,205.12,0.03]
[1757261317799,18.0850594,205.13,205.12,0.03]
[1757261318224,18.7750594,205.13,205.12,0.03]
[1757261318421,20.72689779,205.13,205.12,0.03]
[1757261319703,25.60185513,205.13,205.12,0.03]
[1757261321633,63.18185513,205.13,205.12,0.03]
[1757261322009,25.60185513,205.13,205.12,0.03]
[1757261322308,21.11238974,205.13,205.12,0.03]
[1757261322511,20.42238974,205.13,205.12,0.03]
[1757261322742,63.18185513,205.13,205.12,0.03]
[1757261322910,25.60185513,205.13,205.12,0.03]
[1757261323225,63.20185513,205.13,205.12,0.03]
[1757261328235,63.18185513,205.13,205.12,0.03]
[1757261328437,61.56921552,205.13,205.12,0.03]
[1757261331632,23.98921552,205.13,205.12,0.03]
[1757261331837,61.56921552,205.13,205.12,0.03]
[1757261332036,58.69238974,205.13,205.12,0.03]
[1757261332246,61.56921552,205.13,205.12,0.03]
[1757261338054,23.98921552,205.13,205.12,0.03]
[1757261338238,61.56921552,205.13,205.12,0.03]
[1757261343255,61.56921552,205.13,205.12,0.03]
[1757261344054,87.56921552,205.13,205.12,0.03]
[1757261344455,84.69238974,205.13,205.12,0.03]
[1757261344761,91.48553105,205.13,205.12,0.03]
[1757261348359,87.56921552,205.13,205.12,0.03]
[1757261350169,91.20849375,205.13,205.12,0.03]
[1757261350856,91.20850154,205.13,205.12,0.03]
[1757261354863,39.59559401,205.11,205.1,1e-08]
[1757261355069,80.05241979,205.11,205.1,1e-08]
[1757261355283,80.73241979,205.11,205.1,1e-08]
[1757261355771,82.68454394,205.11,205.1,1e-08]
[1757261356272,87.55997663,205.11,205.1,1e-08]
[1757261357448,90.5263137,205.11,205.1,1e-08]
[1757261357661,87.55997663,205.11,205.1,1e-08]
[1757261357975,88.32948792,205.11,205.1,1e-08]
[1757261358177,91.2063137,205.11,205.1,1e-08]
[1757261361467,91.21191279,205.11,205.1,1e-08]
[1757261361955,88.33508701,205.11,205.1,1e-08]
[1757261362159,91.21191279,205.11,205.1,1e-08]
[1757261364168,52.95191279,205.11,205.1,1e-08]
[1757261364471,90.53191279,205.11,205.1,1e-08]
[1757261367272,90.53207484,205.11,205.1,1e-08]
[1757261368467,52.95207484,205.11,205.1,0.72000001]
[1757261368670,90.53207484,205.11,205.1,0.72000001]
[1757261369165,90.53207484,205.11,205.1,1e-08]
[1757261369566,52.95207484,205.11,205.1,1e-08]
[1757261369763,90.53207484,205.11,205.1,1e-08]
[1757261370379,50.07524906,205.11,205.1,1e-08]
[1757261370588,90.53207484,205.11,205.1,1e-08]
[1757261374860,90.59207484,205.11,205.1,1e-08]
[1757261376386,84.06315085,205.11,205.1,0.69000001]
[1757261376891,87.64997663,205.11,205.1,1e-08]
[1757261377074,91.30412775,205.11,205.1,1e-08]
[1757261377893,88.42730197,205.11,205.1,1e-08]
[1757261378093,50.13730197,205.11,205.1,1e-08]
[1757261378269,90.59412775,205.11,205.1,1e-08]
[1757261381364,91.30412775,205.11,205.1,1e-08]
[1757261382375,90.59412775,205.11,205.1,1e-08]
[1757261383076,91.30412775,205.11,205.1,1e-08]
[1757261383785,53.01412775,205.11,205.1,1e-08]
[1757261384088,90.59412775,205.11,205.1,1e-08]
[1757261384390,91.30598724,205.11,205.1,1e-08]
[1757261384898,90.59598724,205.11,205.1,1e-08]
[1757261387299,91.30598724,205.11,205.1,1e-08]
[1757261388287,88.42916146,205.11,205.1,1e-08]
[1757261388477,92.92474,205.11,205.1,1e-08]
[1757261388675,92.9252267,205.11,205.1,1e-08]
[1757261389782,55.3452267,205.11,205.1,1e-08]
[1757261389977,50.13964816,205.11,205.1,1e-08]
[1757261390182,84.06315085,205.11,205.1,0.69000001]
[1757261391905,46.48315085,205.11,205.1,0.69000001]
[1757261392192,56.1110267,205.11,205.1,0.69000001]
[1757261394284,58.06276985,205.11,205.1,0.69000001]
[1757261395602,2.01174315,205.11,205.1,0.69000001]
[1757261395776,37.64,205.11,205.1,5.18557855]
[1757261396699,0.06,205.11,205.1,5.18557855]
[1757261396892,37.64,205.11,205.1,5.18557855]
[1757261397797,37.64,205.11,205.1,0.69000001]
[1757261400386,42.51543269,205.11,205.1,0.69000001]
[1757261400598,4.93543269,205.11,205.1,0.69000001]
[1757261400782,42.49543269,205.11,205.1,0.69000001]
[1757261402114,42.49543269,205.11,205.1,1e-08]
[1757261404106,42.49543269,205.11,205.1,0.69000001]
[1757261404407,0.06,205.11,205.1,0.69000001]
[1757261404604,37.62,205.11,205.1,0.69000001]
[1757261404913,37.62,205.11,205.1,1e-08]
[1757261405403,42.49543269,205.11,205.1,1e-08]
[1757261407098,42.49543269,205.11,205.1,0.69000001]
[1757261407492,42.49543269,205.11,205.1,1e-08]
[1757261409396,61.24660524,205.11,205.1,1e-08]
[1757261409717,63.19863413,205.11,205.1,1e-08]
[1757261409887,21.14305559,205.11,205.1,1e-08]
[1757261410088,63.19863413,205.11,205.1,1e-08]
[1757261411093,25.63863413,205.11,205.1,1e-08]
[1757261411295,63.19863413,205.11,205.1,1e-08]
[1757261423418,58.70305559,205.11,205.1,1e-08]
[1757261423720,58.70305559,205.11,205.08,1e-08]
[1757261423721,39.59559401,205.09,205.08,1e-08]
[1757261423904,81.65117255,205.09,205.08,1e-08]
[1757261424313,87.18708068,205.09,205.08,1e-08]
[1757261424499,88.47949069,205.09,205.08,1e-08]
[1757261425204,89.13949069,205.09,205.08,1e-08]
[1757261425420,83.98391215,205.09,205.08,0.69000001]
[1757261425610,83.98391215,205.09,205.08,1e-08]
[1757261426511,1.95241001,205.09,205.08,0.69000001]
[1757261426719,37.56,205.09,205.08,0.69000001]
[1757261427117,4.58557854,205.11,205.08,5.18557855]
[1757261427318,0.06,205.11,205.1,4.49557854]
[1757261427518,37.62,205.11,205.1,5.18557854]
[1757261427718,37.62,205.11,205.1,0.69]
[1757261428214,37.62,205.11,205.1,0.72]
[1757261428918,0.06,205.11,205.1,0.72]
[1757261429123,37.62,205.11,205.1,5.21557854]
[1757261437227,37.62,205.11,205.1,0.03]
[1757261440530,0.06,205.11,205.1,0.74]
[1757261440729,37.6,205.11,205.1,5.23557854]
[1757261442840,37.6,205.11,205.1,10.11124894]
[1757261443019,37.6,205.11,205.1,5.23557854]
[1757261444436,0.06,205.11,205.1,5.23557854]
[1757261444811,0.06,205.11,205.1,10.11124894]
[1757261445012,37.6,205.11,205.1,10.11124894]
[1757261445431,37.6,205.11,205.1,5.23557854]
[1757261447539,37.6,205.11,205.1,10.11124894]
[1757261448434,0.06,205.11,205.1,8.49041574]
[1757261450347,0.06,205.11,205.1,10.44130217]
[1757261460235,0.06,205.11,205.1,1.98088643]
[1757261460539,0.71,205.11,205.1,0.03]
[1757261462471,43.12543269,205.11,205.08,1e-08]
[1757261462639,13.59559401,205.1,205.08,1e-08]
[1757261462835,16.47033935,205.09,205.08,1e-08]
[1757261463168,17.12033935,205.09,205.08,1e-08]
[1757261463940,56.91227298,205.09,205.08,1e-08]
[1757261464449,61.78818111,205.09,205.08,1e-08]
[1757261466654,26.0,205.06,205.05,0.03]
[1757261466859,42.47033935,205.06,205.05,0.03]
[1757261467055,43.13033935,205.06,205.05,0.03]
[1757261467356,45.08284466,205.06,205.05,0.03]
[1757261468156,49.95946613,205.06,205.05,0.03]
[1757261468540,87.81946613,205.06,205.05,0.03]
[1757261470156,47.08472079,205.06,205.05,0.03]
[1757261470340,40.45250531,205.06,205.05,0.03]
[1757261470541,38.5,205.06,205.05,0.03]
[1757261472949,0.66,205.06,205.05,0.03]
[1757261473156,11.99564765,205.08,205.05,0.03]
[1757261473340,37.84,205.07,205.05,0.03]
[1757261473545,14.25559401,205.08,205.05,0.03]
[1757261473863,11.33540486,205.09,205.06,3.58474534]
[1757261473864,3.58474534,205.09,205.06,3.58474534]
[1757261474038,3.58474534,205.09,205.05,0.03]
[1757261474039,38.5,205.08,205.05,0.03]
[1757261474244,2.87474534,205.07,205.05,0.03]
[1757261474444,46.25103665,205.08,205.05,0.03]
[1757261474657,0.66,205.06,205.05,0.03]
[1757261477259,45.59093231,205.08,205.05,0.03]
[1757261477464,42.71618697,205.08,205.05,0.03]
[1757261477767,43.37618697,205.08,205.05,0.03]
[1757261477943,42.71618697,205.08,205.05,0.03]
[1757261478144,0.66,205.07,205.05,0.03]
[1757261479466,37.82,205.06,205.05,0.03]
[1757261480059,38.48,205.06,205.05,0.03]
[1757261481467,43.35662147,205.06,205.05,0.03]
[1757261482455,38.48,205.06,205.05,0.03]
[1757261484473,43.35662147,205.06,205.05,0.03]
[1757261486672,46.23136681,205.06,205.05,0.03]
[1757261486881,43.35662147,205.06,205.05,0.03]
[1757261487079,46.23136681,205.06,205.05,0.03]
[1757261487662,59.82696082,205.06,205.05,0.03]
[1757261490760,61.83984743,205.06,205.05,0.03]
[1757261495072,66.76667176,205.06,205.05,0.03]
[1757261495473,66.74667176,205.06,205.05,0.03]
[1757261495679,199.14667176,205.06,205.05,0.03]
[1757261497365,199.12667176,205.06,205.05,0.03]
[1757261498267,199.18667176,205.06,205.05,0.03]
[1757261501867,190.70510209,205.06,205.05,0.03]
[1757261502069,148.00848062,205.06,205.05,0.03]
[1757261502386,185.82848062,205.06,205.05,0.69]
[1757261502587,183.87559401,205.06,205.05,0.03]
[1757261502884,146.05559401,205.06,205.05,0.69]
[1757261503085,183.91559401,205.06,205.05,0.69]
[1757261503275,183.91559401,205.06,205.05,0.03]
[1757261503870,183.91559401,205.06,205.05,0.69]
[1757261504594,183.91559401,205.06,205.05,0.03]
[1757261507177,183.91559401,205.06,205.05,0.69]
[1757261507989,183.91559401,205.06,205.05,0.03]
[1757261508171,183.87559401,205.06,205.05,0.03]
[1757261508371,188.75221548,205.06,205.05,0.03]
[1757261508578,183.87559401,205.06,205.05,0.03]
[1757261509289,189.46221548,205.06,205.05,0.03]
[1757261509666,183.87559401,205.06,205.05,0.03]
[1757261509871,183.85559401,205.06,205.05,0.03]
[1757261510280,188.73221548,205.06,205.05,0.03]
[1757261510678,150.93221548,205.06,205.05,0.03]
[1757261511063,188.73221548,205.06,205.05,0.03]
[1757261511992,183.85559401,205.06,205.05,0.03]
[1757261512775,146.05559401,205.06,205.05,0.03]
[1757261512980,183.85559401,205.06,205.05,0.03]
[1757261513797,189.44221548,205.06,205.05,0.03]
[1757261514377,193.93804516,205.06,205.05,0.03]
[1757261514784,189.06142369,205.06,205.05,0.03]
[1757261514998,183.85559401,205.06,205.05,0.03]
[1757261516286,183.81559401,205.06,205.05,0.03]
[1757261517291,183.81559401,205.06,205.05,0.69]
[1757261517594,183.81559401,205.06,205.05,0.03]
[1757261519704,146.05559401,205.06,205.05,0.03]
[1757261519877,183.79559401,205.06,205.05,0.03]
[1757261521394,0.06,205.06,205.05,0.03]
[1757261521599,37.8,205.06,205.05,0.69]
[1757261521786,37.8,205.06,205.05,5.18582968]
[1757261523512,37.8,205.06,205.05,0.69]
[1757261523703,37.8,205.06,205.05,5.18582968]
[1757261523896,37.8,205.06,205.05,0.69]
[1757261524096,37.8,205.06,205.05,5.18582968]
[1757261524505,37.8,205.06,205.05,0.69]
[1757261527303,0.06,205.06,205.05,0.69]
[1757261527507,37.76,205.06,205.05,0.69]
[1757261527690,38.42,205.06,205.05,0.03]
[1757261527890,37.76,205.06,205.05,0.03]
[1757261531009,0.06,205.06,205.05,0.03]
[1757261531313,37.74,205.06,205.05,0.03]
[1757261535615,38.4,205.06,205.05,0.03]
[1757261536597,37.74,205.06,205.05,0.03]
[1757261537293,37.7,205.06,205.05,0.03]
[1757261539033,14.31559401,205.06,205.05,0.03]
[1757261539241,51.29559401,205.06,205.05,0.03]
[1757261539410,42.40582968,205.06,205.05,5.21582968]
[1757261539734,37.88,205.06,205.05,0.03]
[1757261539929,0.06,205.06,205.05,0.03]
[1757261540119,37.9,205.06,205.05,0.03]
[1757261542642,47.93245115,205.06,205.05,0.03]
[1757261542972,47.96245115,205.06,205.05,0.03]
[1757261544316,47.94245115,205.06,205.05,0.03]
[1757261545624,10.12245115,205.06,205.05,0.03]
[1757261545827,47.94245115,205.06,205.05,0.03]
[1757261546129,23.71804516,205.06,205.05,0.03]
[1757261546320,61.53804516,205.06,205.05,0.03]
[1757261549343,37.86,205.06,205.05,0.03]
[1757261549726,39.81212416,205.06,205.05,0.03]
[1757261550038,37.86,205.06,205.05,0.03]
[1757261550237,56.99221548,205.06,205.05,0.03]
[1757261550541,52.11559401,205.06,205.05,0.03]
[1757261550723,58.94443491,205.06,205.05,0.03]
[1757261551144,58.28443491,205.06,205.05,0.03]
[1757261551318,53.40781344,205.06,205.05,0.03]
[1757261554346,54.06781344,205.06,205.05,0.03]
[1757261554525,54.04781344,205.06,205.05,0.03]
[1757261555342,58.92443491,205.06,205.05,0.03]
[1757261555842,21.14443491,205.06,205.05,0.03]
[1757261556025,67.07482954,205.06,205.05,0.03]
[1757261556232,71.17129594,205.06,205.05,0.03]
[1757261558049,13.59559401,205.03,204.87,26.0]
[1757261558342,4.49582968,204.98,204.9,1.95298196]
[1757261558548,37.9,204.97,204.9,1.95298196]
[1757261558846,37.9,204.97,204.92,4.49582968]
[1757261559149,37.9,204.97,204.9,1.95298196]
[1757261559444,37.9,204.97,204.92,4.49582968]
[1757261561933,14.6473647,204.98,204.93,4.49582968]
[1757261562141,13.59559401,205.01,204.91,4.8801913]
[1757261562142,37.88,204.97,204.94,4.49582968]
[1757261562739,37.88,204.97,204.91,4.8801913]
[1757261562929,37.88,204.97,204.94,4.49582968]
[1757261563336,37.88,204.97,204.94,9.37527542]
[1757261566051,37.88,204.97,204.93,19.14104924]
[1757261566359,37.88,204.97,204.93,14.64521956]
[1757261566538,42.37582968,204.97,204.93,14.64521956]
[1757261566946,42.37582968,204.97,204.92,4.87972084]
[1757261567353,4.49582968,204.96,204.92,19.5249404]
[1757261567553,37.86,204.95,204.92,19.5249404]
[1757261567855,37.86,204.95,204.92,4.87972084]
[1757261569655,37.86,204.95,204.91,24.05332993]
[1757261569958,37.86,204.95,204.91,9.40596523]
[1757261570460,37.86,204.95,204.91,7.79050001]
[1757261572050,40.74036446,204.95,204.91,4.91013555]
[1757261572760,37.86,204.95,204.91,4.91013555]
[1757261573339,37.86,204.95,204.91,19.55750025]
[1757261573555,37.86,204.95,204.91,4.91013555]
[1757261574261,37.86,204.95,204.91,19.55750025]
[1757261574465,37.86,204.95,204.91,22.43786471]
[1757261574762,37.86,204.95,204.91,7.79050001]
[1757261575168,37.86,204.95,204.91,22.4378647]
[1757261579262,38.54,204.95,204.91,22.4378647]
[1757261580762,38.54,204.95,204.91,14.67736469]
[1757261580944,0.68,204.94,204.91,14.67736469]
[1757261581147,0.68,204.93,204.91,0.03]
[1757261581353,0.68,204.93,204.91,26.03]
[1757261581669,0.68,204.92,204.91,0.03]
[1757261582057,0.68,204.92,204.91,26.03]
[1757261582854,2.88036446,204.94,204.91,26.03]
[1757261583060,0.68,204.93,204.91,26.03]
[1757261586468,0.68,204.93,204.91,0.03]
[1757261586764,37.86,204.95,204.91,0.03]
[1757261586765,38.54,204.95,204.91,0.03]
[1757261586958,2.88036446,204.94,204.91,0.03]
[1757261587155,3.56036446,204.94,204.91,0.03]
[1757261587759,0.68,204.93,204.91,0.03]
[1757261588064,3.56036446,204.94,204.91,0.03]
[1757261588260,0.68,204.94,204.91,0.03]
[1757261588443,3.56036446,204.94,204.91,0.03]
[1757261589267,0.68,204.93,204.91,0.03]
[1757261589768,3.56036446,204.93,204.91,0.03]
[1757261590557,2.88036446,204.93,204.91,0.03]
[1757261590865,0.68,204.92,204.91,0.03]
[1757261591241,3.56036446,204.92,204.91,0.03]
[1757261592473,0.68,204.92,204.91,0.03]
[1757261594056,0.68,204.92,204.91,0.03]
[1757261603000,8.44031761,204.92,204.91,0.03]
[1757261603159,3.56036446,204.92,204.91,0.03]
[1757261603562,0.68,204.92,204.91,0.03]
[1757261604372,0.74,204.92,204.91,0.03]
[1757261607373,0.74,204.92,204.87,33.8414535]
[1757261607884,0.68,204.91,204.87,2.88036446]
[1757261609286,0.68,204.91,204.87,7.76136951]
[1757261609583,0.68,204.9,204.87,4.88100505]
[1757261609763,0.68,204.91,204.87,7.76136951]
[1757261610385,0.68,204.9,204.87,7.76136951]
[1757261610886,0.68,204.9,204.87,30.88100505]
[1757261612186,0.68,204.9,204.87,4.88100505]
[1757261612393,0.68,204.9,204.87,30.88100505]
[1757261612996,2.88036446,204.91,204.87,30.88100505]
[1757261613288,2.88036446,204.91,204.87,26.0]
[1757261613289,0.68,204.9,204.87,26.0]
[1757261613589,0.68,204.89,204.87,26.0]
[1757261613775,0.68,204.88,204.87,26.0]
[1757261614385,3.56036446,204.9,204.87,26.0]
[1757261614586,0.68,204.89,204.87,26.0]
[1757261614789,2.88036446,204.9,204.87,26.0]
[1757261615292,3.59036446,204.9,204.87,30.88111551]
[1757261615585,0.71,204.9,204.87,30.88111551]
[1757261615766,3.59036446,204.91,204.87,30.88111551]
[1757261616088,0.71,204.9,204.87,30.88111551]
[1757261616887,2.88036446,204.91,204.87,30.88111551]
[1757261617266,3.59036446,204.91,204.87,30.88111551]
[1757261617789,0.71,204.9,204.87,26.0]
[1757261618873,0.71,204.89,204.86,0.03]
[1757261619372,0.71,204.88,204.86,0.03]
[1757261619573,0.71,204.88,204.87,26.0]
[1757261620166,0.71,204.88,204.86,0.03]
[1757261621591,3.59036446,204.89,204.86,0.03]